bitfinex-derivatives/quotes_BTCF0:USTF0_20260221
["timestamp","ask_amount","ask_price","bid_price","bid_amount"]
[1771687580327,0.05678034,68570.0,68558.0,0.01459]
[1771687580528,0.21543265,68569.0,68558.0,0.01459]
[1771687580729,0.21543265,68568.0,68558.0,0.01459]
[1771687581028,0.05678034,68570.0,68556.0,0.02918]
[1771687581328,0.21543282,68569.0,68556.0,0.02918]
[1771687581625,0.21543282,68568.0,68557.0,0.01459]
[1771687581827,0.05678034,68570.0,68557.0,0.01459]
[1771687582028,0.001,68568.0,68557.0,0.01459]
[1771687582826,0.05678034,68570.0,68557.0,0.01459]
[1771687583132,0.21572382,68569.0,68557.0,0.01459]
[1771687583334,0.21572382,68568.0,68557.0,0.01459]
[1771687583524,0.05778034,68570.0,68557.0,0.01459]
[1771687583719,0.21572383,68569.0,68557.0,0.01459]
[1771687583924,0.21672383,68568.0,68557.0,0.01459]
[1771687584229,0.001,68568.0,68557.0,0.01459]
[1771687585333,0.05678034,68570.0,68557.0,0.01459]
[1771687585533,0.21572405,68569.0,68557.0,0.01459]
[1771687585726,0.21572405,68568.0,68557.0,0.01459]
[1771687585932,0.05678034,68570.0,68557.0,0.01459]
[1771687586124,0.21572405,68569.0,68557.0,0.01459]
[1771687586326,0.05678034,68570.0,68557.0,0.01459]
[1771687586327,0.21572405,68568.0,68557.0,0.01459]
[1771687586528,0.21572405,68567.0,68557.0,0.01459]
[1771687586832,0.05678034,68570.0,68557.0,0.01459]
[1771687587034,0.21572437,68569.0,68557.0,0.01459]
[1771687587234,0.21572437,68568.0,68558.0,0.01459]
[1771687587435,0.21572437,68567.0,68558.0,0.01459]
[1771687587734,0.05678034,68570.0,68558.0,0.01459]
[1771687587934,0.21572444,68569.0,68558.0,0.01459]
[1771687588230,0.21572444,68568.0,68557.0,0.01459]
[1771687588435,0.21572444,68567.0,68557.0,0.01459]
[1771687588732,0.05678034,68570.0,68557.0,0.01459]
[1771687588930,0.21572452,68569.0,68557.0,0.01459]
[1771687589230,0.21572452,68568.0,68557.0,0.01459]
[1771687589428,0.21572452,68567.0,68557.0,0.01459]
[1771687589630,0.05678034,68570.0,68557.0,0.01459]
[1771687589832,0.21572459,68569.0,68557.0,0.01459]
[1771687590030,0.21572459,68568.0,68563.0,0.00084]
[1771687590226,0.21572459,68567.0,68557.0,0.01459]
[1771687590427,0.05678034,68570.0,68557.0,0.01459]
[1771687590726,0.21572478,68569.0,68557.0,0.01459]
[1771687591031,0.21572478,68568.0,68555.0,0.014591]
[1771687591226,0.21572478,68567.0,68555.0,0.014591]
[1771687591426,0.05678034,68570.0,68555.0,0.014591]
[1771687591636,0.2157246,68569.0,68555.0,0.014591]
[1771687591935,0.2167246,68568.0,68555.0,0.014591]
[1771687592130,0.2157246,68567.0,68555.0,0.014591]
[1771687592636,0.2157246,68567.0,68556.0,0.01459]
[1771687593037,0.18989586,68570.0,68556.0,0.01459]
[1771687593232,0.2163363,68569.0,68556.0,0.01459]
[1771687593432,0.2163363,68568.0,68556.0,0.01459]
[1771687593634,0.2163363,68567.0,68556.0,0.01459]
[1771687593842,0.18989586,68570.0,68556.0,0.01459]
[1771687594136,0.2163363,68569.0,68556.0,0.01459]
[1771687594436,0.2163363,68568.0,68556.0,0.01459]
[1771687594635,0.2163363,68567.0,68556.0,0.01459]
[1771687594837,0.18989586,68570.0,68556.0,0.01459]
[1771687595037,0.21633604,68569.0,68556.0,0.01459]
[1771687595338,0.21633604,68568.0,68556.0,0.01459]
[1771687595536,0.21633604,68567.0,68556.0,0.01459]
[1771687595737,0.18989586,68570.0,68556.0,0.01459]
[1771687595937,0.21633585,68569.0,68556.0,0.01459]
[1771687596139,0.21633585,68568.0,68556.0,0.01459]
[1771687596339,0.21633585,68567.0,68556.0,0.01459]
[1771687596531,0.001,68569.0,68556.0,0.01459]
[1771687596731,0.21633597,68568.0,68556.0,0.01459]
[1771687596932,0.22712136,68580.0,68545.0,0.014593]
[1771687596933,0.18954376,68566.0,68552.0,0.029182]
[1771687597132,0.21635101,68565.0,68552.0,0.014591]
[1771687597335,0.13276342,68566.0,68554.0,0.014591]
[1771687597536,0.2163323,68565.0,68554.0,0.014591]
[1771687597736,0.13276342,68566.0,68549.0,0.014592]
[1771687597936,0.2163323,68565.0,68551.0,0.014591]
[1771687598136,0.13276342,68566.0,68551.0,0.014591]
[1771687598338,0.21631889,68565.0,68551.0,0.014591]
[1771687598545,0.01459,68558.0,68551.0,0.014591]
[1771687598746,0.01459,68557.0,68549.0,0.014592]
[1771687598943,0.014591,68556.0,68550.0,0.014592]
[1771687599346,0.014591,68556.0,68539.0,0.014594]
[1771687599347,0.014593,68545.0,68539.0,0.014594]
[1771687599534,0.014592,68548.0,68542.0,0.014593]
[1771687599736,0.014592,68547.0,68537.0,0.014595]
[1771687599937,0.05678034,68550.0,68547.0,0.014592]
[1771687600142,0.014591,68555.0,68546.0,0.014592]
[1771687600345,0.014591,68553.0,68542.0,0.014593]
[1771687600546,0.014591,68553.0,68547.0,0.014592]
[1771687601448,0.014591,68552.0,68544.0,0.014593]
[1771687602131,0.014592,68551.0,68544.0,0.014593]
[1771687602935,0.014592,68550.0,68544.0,0.014593]
[1771687603135,0.014592,68550.0,68543.0,0.014593]
[1771687604747,0.09389725,68551.0,68530.0,0.46704]
[1771687605043,0.014594,68540.0,68534.0,0.014595]
[1771687605247,0.014594,68541.0,68534.0,0.014595]
[1771687605638,0.014594,68540.0,68532.0,0.014595]
[1771687605940,0.014594,68539.0,68532.0,0.014595]
[1771687606342,0.014594,68539.0,68533.0,0.014595]
[1771687606940,0.014595,68537.0,68528.0,0.014596]
[1771687607147,0.014595,68536.0,68525.0,0.014597]
[1771687607336,0.014595,68533.0,68526.0,0.014597]
[1771687607740,0.014596,68532.0,68526.0,0.014597]
[1771687607941,0.014596,68532.0,68523.0,0.014597]
[1771687607942,0.014595,68536.0,68525.0,0.014597]
[1771687608242,0.014596,68531.0,68523.0,0.014597]
[1771687608444,0.014596,68533.0,68526.0,0.014597]
[1771687608737,0.014596,68532.0,68526.0,0.014597]
[1771687610034,0.014596,68532.0,68525.0,0.014597]
[1771687610035,0.014596,68531.0,68525.0,0.014597]
[1771687610941,0.014596,68531.0,68524.0,0.014597]
[1771687611344,0.014596,68531.0,68516.0,0.014599]
[1771687611548,0.014598,68523.0,68516.0,0.029198]
[1771687611753,0.014598,68523.0,68517.0,0.014599]
[1771687612452,0.014598,68520.0,68513.0,0.014599]
[1771687612651,0.014598,68520.0,68514.0,0.014599]
[1771687613046,0.014599,68519.0,68510.0,0.0146]
[1771687613249,0.014599,68519.0,68511.0,0.0146]
[1771687613250,0.01471228,68518.0,68511.0,0.0146]
[1771687613453,0.014599,68517.0,68508.0,0.014601]
[1771687613641,0.014599,68516.0,68510.0,0.0146]
[1771687613949,0.014599,68515.0,68508.0,0.014601]
[1771687614142,0.014599,68515.0,68505.0,0.014601]
[1771687614143,0.0146,68512.0,68506.0,0.014601]
[1771687614353,0.0146,68513.0,68506.0,0.014601]
[1771687614646,0.0146,68512.0,68503.0,0.014602]
[1771687614847,0.0146,68513.0,68506.0,0.014601]
[1771687615045,0.014599,68515.0,68507.0,0.014601]
[1771687615450,0.014599,68515.0,68506.0,0.014601]
[1771687615641,0.0146,68513.0,68506.0,0.014601]
[1771687615838,0.0146,68513.0,68502.0,0.014602]
[1771687616040,0.0146,68513.0,68504.0,0.014602]
[1771687616236,0.014599,68517.0,68502.0,0.014602]
[1771687616443,0.014599,68516.0,68508.0,0.014601]
[1771687616747,0.014599,68516.0,68509.0,0.0146]
[1771687617151,0.014599,68517.0,68509.0,0.014601]
[1771687618138,0.014599,68517.0,68508.0,0.014601]
[1771687618448,0.014599,68517.0,68505.0,0.014601]
[1771687618449,0.014599,68515.0,68507.0,0.012835]
[1771687619145,0.010936,68515.0,68508.0,0.014601]
[1771687619342,0.010936,68515.0,68507.0,0.014601]
[1771687619544,0.00011328,68518.0,68505.0,0.014601]
[1771687619753,0.00011328,68518.0,68510.0,0.0146]
[1771687620053,0.00011328,68518.0,68512.0,0.00084]
[1771687620254,0.00011328,68518.0,68510.0,0.0146]
[1771687620645,0.014599,68517.0,68510.0,0.0146]
[1771687621455,0.01471228,68518.0,68510.0,0.0146]
[1771687622945,0.01471228,68518.0,68510.0,0.0292]
[1771687623150,0.01471228,68518.0,68510.0,0.0146]
[1771687623746,0.00011328,68518.0,68496.0,0.17461108]
[1771687623949,0.00011328,68518.0,68510.0,0.0146]
[1771687623950,0.014599,68518.0,68510.0,0.0146]
[1771687624137,0.014599,68516.0,68506.0,0.014601]
[1771687624553,0.0146,68513.0,68504.0,0.014601]
[1771687624753,0.014599,68514.0,68504.0,0.014601]
[1771687624955,7.324e-05,68512.0,68505.0,0.014601]
[1771687625250,7.324e-05,68512.0,68506.0,0.014601]
[1771687626046,7.324e-05,68512.0,68506.0,0.015521]
[1771687626348,7.324e-05,68512.0,68505.0,0.014601]
[1771687626658,7.324e-05,68512.0,68506.0,0.014601]
[1771687626954,0.01467324,68512.0,68504.0,0.014601]
[1771687627153,0.0146,68511.0,68504.0,0.014601]
[1771687628248,0.0146,68511.0,68496.0,0.00017982]
[1771687628447,0.014602,68504.0,68497.0,0.014603]
[1771687628647,0.014602,68504.0,68496.0,0.01478282]
[1771687628848,0.014602,68504.0,68496.0,0.00017982]
[1771687628849,0.014602,68502.0,68496.0,0.00017982]
[1771687629044,0.014602,68502.0,68496.0,0.00097982]
[1771687629249,0.014602,68501.0,68496.0,0.00017982]
[1771687629443,0.014602,68501.0,68493.0,0.014604]
[1771687630451,0.014602,68500.0,68493.0,0.014604]
[1771687630755,0.014602,68501.0,68493.0,0.014604]
[1771687630954,0.014602,68500.0,68493.0,0.014604]
[1771687631155,0.014602,68504.0,68491.0,0.16737395]
[1771687631454,0.014602,68504.0,68496.0,0.014603]
[1771687631855,0.014602,68503.0,68496.0,0.014603]
[1771687632050,0.014602,68503.0,68495.0,0.014603]
[1771687632456,0.014602,68502.0,68495.0,0.014603]
[1771687632856,0.014602,68501.0,68494.0,0.014604]
[1771687633152,0.014602,68502.0,68495.0,0.014603]
[1771687633456,0.014602,68501.0,68492.0,0.014604]
[1771687633650,0.014602,68501.0,68494.0,0.014604]
[1771687633850,0.014602,68502.0,68495.0,0.014603]
[1771687634159,0.014602,68501.0,68494.0,0.014604]
[1771687635357,0.014602,68502.0,68495.0,0.014603]
[1771687637061,0.014601,68505.0,68497.0,0.014603]
[1771687637256,0.014602,68502.0,68495.0,0.014603]
[1771687637458,0.014602,68502.0,68494.0,0.029208]
[1771687637653,0.014602,68502.0,68494.0,0.014604]
[1771687637855,0.014602,68502.0,68495.0,0.014603]
[1771687638563,0.014602,68501.0,68494.0,0.014604]
[1771687638858,0.014602,68502.0,68495.0,0.014603]
[1771687639963,0.014602,68503.0,68496.0,0.014603]
[1771687640254,0.014601,68507.0,68500.0,0.014602]
[1771687640461,0.014601,68506.0,68499.0,0.014603]
[1771687641352,0.014601,68509.0,68499.0,0.014603]
[1771687641562,0.17746497,68510.0,68499.0,0.014603]
[1771687642263,0.014601,68506.0,68499.0,0.014603]
[1771687644060,0.014601,68506.0,68500.0,0.00088]
[1771687644254,0.014601,68506.0,68499.0,0.014603]
[1771687646957,0.014601,68507.0,68496.0,0.014603]
[1771687647162,0.014602,68503.0,68496.0,0.014603]
[1771687647862,0.014601,68505.0,68498.0,0.014603]
[1771687648364,0.17746497,68510.0,68492.0,0.16737395]
[1771687648564,0.25613842,68509.0,68502.0,0.014602]
[1771687648861,0.19218008,68508.0,68502.0,0.014602]
[1771687649062,0.014601,68508.0,68501.0,0.014602]
[1771687649562,0.014601,68507.0,68500.0,0.014602]
[1771687649765,0.014601,68508.0,68500.0,0.014602]
[1771687649961,0.0146,68510.0,68499.0,0.014603]
[1771687649962,0.014601,68507.0,68499.0,0.014603]
[1771687650162,0.014601,68507.0,68500.0,0.014602]
[1771687650563,0.014601,68507.0,68497.0,0.014603]
[1771687650564,0.014601,68506.0,68497.0,0.014603]
[1771687651060,0.014601,68507.0,68500.0,0.014602]
[1771687651465,0.014601,68508.0,68501.0,0.014602]
[1771687651651,0.014601,68509.0,68499.0,0.014602]
[1771687651855,0.014601,68507.0,68501.0,0.014602]
[1771687652567,0.014601,68508.0,68501.0,0.014602]
[1771687652865,0.014601,68507.0,68500.0,0.014602]
[1771687653463,0.014601,68507.0,68497.0,0.014603]
[1771687653858,0.014601,68506.0,68498.0,0.014603]
[1771687654058,0.014601,68505.0,68498.0,0.014603]
[1771687654565,0.014602,68504.0,68497.0,0.014603]
[1771687654956,0.014601,68505.0,68498.0,0.014603]
[1771687655458,0.014602,68504.0,68497.0,0.014603]
[1771687655863,0.014601,68505.0,68498.0,0.014603]
[1771687657858,0.014601,68505.0,68498.0,0.029206]
[1771687658061,0.014601,68505.0,68498.0,0.014603]
[1771687658265,0.014601,68505.0,68498.0,0.029206]
[1771687659160,0.0146,68511.0,68501.0,0.014602]
[1771687659365,0.014601,68509.0,68502.0,0.014602]
[1771687659765,0.19206497,68511.0,68502.0,0.014602]
[1771687659766,0.0146,68510.0,68502.0,0.014602]
[1771687659955,0.0146,68510.0,68503.0,0.014602]
[1771687660669,0.24049541,68509.0,68503.0,0.014602]
[1771687660870,0.24049541,68508.0,68503.0,0.014602]
[1771687661169,0.01467324,68512.0,68504.0,0.014601]
[1771687661370,0.01467324,68512.0,68505.0,0.014601]
[1771687661569,7.324e-05,68512.0,68505.0,0.014601]
[1771687663169,0.01467324,68512.0,68505.0,0.014601]
[1771687663573,0.014601,68508.0,68500.0,0.014602]
[1771687664168,0.014601,68507.0,68500.0,0.014602]
[1771687664364,0.014601,68508.0,68500.0,0.014602]
[1771687665672,0.029202,68508.0,68500.0,0.014602]
[1771687666167,0.014602,68504.0,68487.0,0.014605]
[1771687666372,0.014602,68504.0,68496.0,0.014603]
[1771687667269,0.014602,68502.0,68494.0,0.014604]
[1771687667466,0.014602,68501.0,68494.0,0.014604]
[1771687667666,0.014602,68502.0,68495.0,0.014603]
[1771687667969,0.029204,68502.0,68495.0,0.014603]
[1771687668164,0.014602,68501.0,68495.0,0.014603]
[1771687668365,0.014603,68500.0,68494.0,0.014604]
[1771687668670,0.014603,68500.0,68494.0,0.029208]
[1771687669069,0.014603,68500.0,68494.0,0.014604]
[1771687669367,0.014603,68499.0,68494.0,0.014604]
[1771687669571,0.014603,68500.0,68491.0,0.014604]
[1771687669768,0.014603,68500.0,68487.0,0.014605]
[1771687669769,0.014603,68496.0,68490.0,0.014604]
[1771687670072,0.014603,68498.0,68483.0,0.014606]
[1771687670371,0.014603,68497.0,68492.0,0.014604]
[1771687671160,0.00010144,68496.0,68492.0,0.014604]
[1771687671575,0.014602,68502.0,68492.0,0.014604]
[1771687672078,0.014604,68495.0,68490.0,0.014604]
[1771687672273,0.014604,68495.0,68488.0,0.014605]
[1771687673575,0.014604,68495.0,68490.0,0.014605]
[1771687674877,0.014604,68494.0,68488.0,0.014605]
[1771687675479,0.014604,68494.0,68489.0,0.014605]
[1771687676178,0.014604,68494.0,68481.0,0.00073013]
[1771687676179,0.014603,68500.0,68492.0,0.014604]
[1771687676383,0.014603,68497.0,68492.0,0.014604]
[1771687676571,0.014603,68497.0,68491.0,0.014604]
[1771687677681,0.029206,68497.0,68491.0,0.014604]
[1771687677883,0.014603,68497.0,68491.0,0.014604]
[1771687678376,0.17746497,68501.0,68481.0,0.00073013]
[1771687678677,0.17746497,68501.0,68484.0,0.014606]
[1771687678678,0.029208,68493.0,68484.0,0.014606]
[1771687678882,0.014604,68493.0,68487.0,0.014605]
[1771687679782,0.014604,68492.0,68487.0,0.014605]
[1771687680177,0.014605,68490.0,68484.0,0.014606]
[1771687680377,0.014605,68489.0,68482.0,0.014606]
[1771687680583,0.014604,68493.0,68487.0,0.014605]
[1771687683191,0.014604,68492.0,68487.0,0.014605]
[1771687686294,0.014604,68492.0,68487.0,0.02921]
[1771687686898,0.014604,68492.0,68487.0,0.014605]
[1771687687399,0.014604,68493.0,68488.0,0.014605]
[1771687694093,0.014604,68495.0,68490.0,0.014605]
[1771687694294,0.014604,68495.0,68488.0,0.014605]
[1771687694295,0.014603,68496.0,68486.0,0.014605]
[1771687694496,0.014604,68495.0,68489.0,0.014605]
[1771687695504,0.014603,68496.0,68490.0,0.014604]
[1771687696203,0.014603,68496.0,68491.0,0.014604]
[1771687699094,0.18238211,68500.0,68481.0,0.00073013]
[1771687699406,0.014604,68493.0,68487.0,0.014605]
[1771687700602,0.014604,68493.0,68486.0,0.014605]
[1771687701405,0.014604,68492.0,68484.0,0.014606]
[1771687701606,0.014604,68493.0,68486.0,0.014605]
[1771687703310,0.014604,68492.0,68485.0,0.014606]
[1771687704400,0.014604,68492.0,68486.0,0.014605]
[1771687707210,0.014604,68494.0,68487.0,0.014605]
[1771687707411,0.014604,68494.0,68488.0,0.014605]
[1771687707707,0.029206,68496.0,68488.0,0.014605]
[1771687707913,0.014604,68495.0,68489.0,0.014605]
[1771687708112,0.014604,68495.0,68488.0,0.014605]
[1771687709008,0.014604,68493.0,68486.0,0.014605]
[1771687709507,0.014604,68493.0,68484.0,0.014606]
[1771687709508,0.014604,68492.0,68485.0,0.014606]
[1771687709812,0.014604,68492.0,68486.0,0.014605]
[1771687710013,0.014604,68492.0,68485.0,0.014606]
[1771687712416,0.014603,68496.0,68487.0,0.014605]
[1771687712618,0.029208,68494.0,68487.0,0.014605]
[1771687713010,0.014604,68493.0,68487.0,0.014605]
[1771687713209,0.014604,68493.0,68486.0,0.014605]
[1771687714717,0.014604,68492.0,68486.0,0.014605]
[1771687715416,0.014604,68493.0,68486.0,0.014605]
[1771687715716,0.014604,68494.0,68486.0,0.014605]
[1771687715717,0.014604,68492.0,68486.0,0.014605]
[1771687716817,0.029208,68492.0,68485.0,0.014606]
[1771687717018,0.014601,68509.0,68485.0,0.014606]
[1771687717219,0.014603,68496.0,68489.0,0.014605]
[1771687717415,0.014603,68497.0,68489.0,0.014605]
[1771687719314,0.014603,68496.0,68489.0,0.014605]
[1771687720021,0.014603,68496.0,68488.0,0.014605]
[1771687720523,0.014603,68496.0,68489.0,0.014605]
[1771687722422,0.014602,68501.0,68482.0,0.1657879]
[1771687722423,0.014603,68500.0,68492.0,0.014604]
[1771687722609,0.014603,68499.0,68492.0,0.014604]
[1771687722808,0.014603,68499.0,68490.0,0.014604]
[1771687723021,0.014603,68498.0,68491.0,0.014604]
[1771687723322,0.014603,68497.0,68490.0,0.014605]
[1771687725329,0.18238211,68508.0,68483.0,0.1773764]
[1771687725625,0.014602,68500.0,68492.0,0.014604]
[1771687726026,0.014603,68499.0,68492.0,0.014604]
[1771687726620,0.014603,68497.0,68489.0,0.014605]
[1771687726911,0.014603,68497.0,68490.0,0.014605]
[1771687727112,0.014603,68497.0,68489.0,0.014605]
[1771687727321,0.014603,68496.0,68489.0,0.014605]
[1771687728327,0.014603,68497.0,68490.0,0.014605]
[1771687729527,0.014602,68502.0,68490.0,0.014605]
[1771687729727,0.014603,68497.0,68490.0,0.014605]
[1771687735026,0.014603,68498.0,68488.0,0.014605]
[1771687735330,0.014603,68495.0,68488.0,0.014605]
[1771687736533,0.029206,68497.0,68489.0,0.014605]
[1771687736935,0.014603,68496.0,68489.0,0.014605]
[1771687737134,0.014604,68495.0,68488.0,0.014605]
[1771687737331,0.014603,68496.0,68488.0,0.014605]
[1771687737524,0.014604,68495.0,68488.0,0.014605]
[1771687738733,0.014603,68496.0,68489.0,0.014605]
[1771687739233,0.014603,68496.0,68487.0,0.014605]
[1771687739234,0.014604,68495.0,68487.0,0.014605]
[1771687739437,0.014604,68495.0,68488.0,0.014605]
[1771687740233,0.014604,68494.0,68485.0,0.014605]
[1771687740430,0.014604,68494.0,68487.0,0.014605]
[1771687740831,0.014603,68496.0,68488.0,0.014605]
[1771687741036,0.20510125,68499.0,68483.0,0.014606]
[1771687741335,0.014604,68491.0,68485.0,0.014606]
[1771687742531,0.02921,68490.0,68484.0,0.014606]
[1771687742741,0.014605,68489.0,68484.0,0.014606]
[1771687746652,0.014605,68488.0,68476.0,0.16038885]
[1771687746848,0.014605,68488.0,68483.0,0.014606]
[1771687747252,0.014605,68487.0,68483.0,0.014606]
[1771687747739,0.02921,68488.0,68483.0,0.014606]
[1771687747949,0.014605,68488.0,68483.0,0.014606]
[1771687748151,0.02921,68488.0,68483.0,0.014606]
[1771687748646,0.014605,68487.0,68482.0,0.014606]
[1771687749257,0.014606,68485.0,68479.0,0.014607]
[1771687750350,0.014606,68485.0,68480.0,0.014607]
[1771687750654,0.014606,68485.0,68481.0,0.014606]
[1771687750853,0.014605,68486.0,68481.0,0.029212]
[1771687751055,0.014605,68486.0,68481.0,0.014606]
[1771687751448,0.014605,68487.0,68482.0,0.014606]
[1771687751642,0.014605,68486.0,68482.0,0.014606]
[1771687753758,0.014605,68490.0,68482.0,0.014606]
[1771687753954,0.014605,68487.0,68482.0,0.014606]
[1771687754860,0.014605,68487.0,68482.0,0.029212]
[1771687755059,0.014605,68487.0,68482.0,0.014606]
[1771687755357,0.02921,68487.0,68482.0,0.014606]
[1771687756856,0.014605,68486.0,68482.0,0.014606]
[1771687757361,0.014605,68488.0,68483.0,0.014606]
[1771687757552,0.014605,68487.0,68482.0,0.014606]
[1771687757945,0.014605,68486.0,68482.0,0.014606]
[1771687760056,0.014605,68488.0,68483.0,0.014606]
[1771687762062,0.014605,68488.0,68482.0,0.014606]
[1771687762063,0.014605,68488.0,68484.0,0.014606]
[1771687762665,0.02921,68488.0,68483.0,0.014606]
[1771687762864,0.014605,68488.0,68483.0,0.014606]
[1771687763163,0.014605,68487.0,68483.0,0.014606]
[1771687763755,0.014605,68487.0,68482.0,0.014606]
[1771687764258,0.014605,68488.0,68483.0,0.014606]
[1771687764458,0.014605,68487.0,68482.0,0.014606]
[1771687765861,0.014603,68497.0,68484.0,0.014606]
[1771687766062,0.014605,68489.0,68484.0,0.014606]
[1771687766767,0.014605,68489.0,68484.0,0.029212]
[1771687767668,0.014605,68490.0,68484.0,0.029212]
[1771687768560,0.014605,68490.0,68485.0,0.014606]
[1771687770675,0.014605,68490.0,68484.0,0.014606]
[1771687770873,0.014605,68489.0,68482.0,0.014606]
[1771687771170,0.014605,68490.0,68484.0,0.014606]
[1771687773574,0.014604,68491.0,68484.0,0.029212]
[1771687774075,0.014604,68491.0,68484.0,0.014606]
[1771687775471,0.014605,68490.0,68484.0,0.014606]
[1771687775979,0.014605,68489.0,68480.0,0.014607]
[1771687776170,0.014605,68488.0,68481.0,0.014606]
[1771687777571,0.014605,68487.0,68481.0,0.014606]
[1771687778076,0.014605,68487.0,68480.0,0.014607]
[1771687778472,0.014605,68487.0,68481.0,0.014606]
[1771687779180,0.014605,68487.0,68482.0,0.014606]
[1771687784583,0.014605,68486.0,68482.0,0.014606]
[1771687785087,0.014605,68486.0,68480.0,0.014607]
[1771687785288,0.014605,68486.0,68481.0,0.014606]
[1771687785873,0.014605,68487.0,68481.0,0.014606]
[1771687786679,0.014606,68486.0,68480.0,0.014607]
[1771687786875,0.014606,68484.0,68479.0,0.014607]
[1771687787075,0.014606,68485.0,68479.0,0.014607]
[1771687787284,0.014606,68485.0,68478.0,0.014607]
[1771687787591,0.014606,68484.0,68479.0,0.014607]
[1771687789487,0.014606,68485.0,68480.0,0.014606]
[1771687791100,0.1835729,68497.0,68482.0,0.014606]
[1771687791295,0.014604,68495.0,68482.0,0.014606]
[1771687791482,0.014605,68487.0,68482.0,0.014606]
[1771687791682,0.014605,68486.0,68482.0,0.014606]
[1771687792593,0.014605,68486.0,68481.0,0.014606]
[1771687794491,0.014605,68488.0,68482.0,0.014606]
[1771687794691,0.014605,68487.0,68482.0,0.014606]
[1771687796296,0.014605,68486.0,68482.0,0.014606]
[1771687797596,0.014605,68486.0,68481.0,0.014606]
[1771687801198,0.014605,68488.0,68479.0,0.014607]
[1771687801199,0.014606,68483.0,68479.0,0.014607]
[1771687801400,0.014606,68484.0,68479.0,0.014607]
[1771687801902,0.014606,68484.0,68474.0,0.014608]
[1771687801903,0.014606,68483.0,68478.0,0.014607]
[1771687802202,0.014608,68474.0,68469.0,0.014609]
[1771687802403,0.014608,68474.0,68467.0,0.014609]
[1771687802704,0.014608,68475.0,68468.0,0.014609]
[1771687803302,0.014608,68474.0,68467.0,0.014609]
[1771687803604,0.014608,68474.0,68468.0,0.014609]
[1771687803998,0.014608,68474.0,68467.0,0.014609]
[1771687804399,0.014608,68474.0,68468.0,0.014609]
[1771687804602,0.014608,68473.0,68466.0,0.014609]
[1771687804803,0.014608,68475.0,68468.0,0.014609]
[1771687805507,0.014607,68479.0,68472.0,0.014608]
[1771687805696,0.014607,68478.0,68472.0,0.014608]
[1771687805896,0.014607,68478.0,68471.0,0.014609]
[1771687806097,0.17750679,68480.0,68469.0,0.014609]
[1771687806298,0.014608,68476.0,68469.0,0.014609]
[1771687807307,0.014608,68476.0,68468.0,0.014609]
[1771687807502,0.014608,68475.0,68468.0,0.014609]
[1771687808698,0.014608,68475.0,68466.0,0.01461]
[1771687808899,0.014608,68474.0,68466.0,0.01461]
[1771687809411,0.014608,68474.0,68467.0,0.014609]
[1771687809802,0.014608,68473.0,68467.0,0.014609]
[1771687810001,0.014608,68472.0,68466.0,0.01461]
[1771687810202,0.014607,68477.0,68466.0,0.01461]
[1771687810203,0.014608,68473.0,68466.0,0.01461]
[1771687810409,0.014608,68473.0,68467.0,0.014609]
[1771687810806,0.014608,68472.0,68466.0,0.01461]
[1771687811612,0.014608,68473.0,68466.0,0.01461]
[1771687812413,0.014608,68472.0,68466.0,0.01461]
[1771687813010,0.014609,68471.0,68466.0,0.01461]
[1771687813309,0.05691935,68480.0,68464.0,0.0001271]
[1771687813310,0.22934859,68480.0,68464.0,0.0001271]
[1771687813508,0.01461,68464.0,68456.0,0.014612]
[1771687813710,0.01461,68465.0,68456.0,0.014612]
[1771687813711,0.014611,68461.0,68456.0,0.014612]
[1771687813914,0.01461,68463.0,68457.0,0.014612]
[1771687814216,0.014611,68462.0,68457.0,0.014612]
[1771687814407,0.014611,68462.0,68456.0,0.014612]
[1771687814714,0.00012699,68461.0,68457.0,0.014611]
[1771687814916,0.00012699,68461.0,68458.0,0.014611]
[1771687815211,0.00012699,68461.0,68456.0,0.014612]
[1771687815212,0.01473799,68461.0,68456.0,0.014612]
[1771687815510,0.014614,68444.0,68443.0,0.06778389]
[1771687815713,0.014612,68455.0,68440.0,0.014615]
[1771687815912,0.12866665,68459.0,68442.0,0.18031147]
[1771687815913,0.014612,68457.0,68442.0,0.18031147]
[1771687816115,0.014612,68456.0,68450.0,0.014613]
[1771687816309,0.014612,68455.0,68449.0,0.014613]
[1771687816510,0.014612,68455.0,68447.0,0.014614]
[1771687816810,0.014612,68454.0,68447.0,0.014614]
[1771687817110,0.05691935,68460.0,68445.0,0.014614]
[1771687817319,0.014613,68451.0,68445.0,0.014614]
[1771687817508,0.014613,68452.0,68446.0,0.014614]
[1771687817816,0.014612,68454.0,68448.0,0.014613]
[1771687818315,0.014612,68457.0,68445.0,0.014614]
[1771687818515,0.014613,68452.0,68445.0,0.014614]
[1771687819215,0.014613,68450.0,68443.0,0.014615]
[1771687819411,0.014613,68450.0,68444.0,0.014614]
[1771687819612,0.014613,68450.0,68443.0,0.014615]
[1771687820316,0.014611,68460.0,68449.0,0.014613]
[1771687820507,0.014612,68455.0,68448.0,0.014613]
[1771687821215,0.014612,68457.0,68450.0,0.014613]
[1771687821411,0.014612,68455.0,68449.0,0.014613]
[1771687822016,0.014612,68456.0,68449.0,0.014613]
[1771687822213,0.014611,68459.0,68452.0,0.014613]
[1771687822416,0.014611,68458.0,68451.0,0.014613]
[1771687822715,0.00012699,68461.0,68456.0,0.014612]
[1771687822915,0.00012699,68461.0,68457.0,0.014612]
[1771687823108,0.00012699,68461.0,68448.0,0.014613]
[1771687823302,0.00012699,68461.0,68445.0,0.014614]
[1771687823509,0.01473799,68461.0,68454.0,0.014612]
[1771687824110,0.00012699,68461.0,68446.0,0.16569647]
[1771687824417,0.014609,68471.0,68464.0,0.01461]
[1771687824614,0.014609,68471.0,68460.0,0.014611]